fUSD/lending_fUSD_20260125
["ID","MTS","AMOUNT","RATE_DAILY","PERIOD"]
[403570889,1769382676148,-500.0,0.00016986,2]
[403570890,1769382676157,-500.0,0.00016986,2]
[403570891,1769382676167,-362.7279191,0.00016986,2]
[403570892,1769382676177,-500.0,0.00016986,2]
[403570893,1769382676186,-500.0,0.00016986,2]
[403570894,1769382676196,-500.0,0.00016986,2]
[403570895,1769382676206,-500.0,0.00016986,2]
[403570896,1769382676216,-500.0,0.00016986,2]
[403570897,1769382676226,-500.0,0.00016986,2]
[403570898,1769382676236,-500.0,0.00016986,2]
[403570899,1769382676245,-500.0,0.00016986,2]
[403570900,1769382676255,-500.0,0.00016986,2]
[403570901,1769382676265,-500.0,0.00016986,2]
[403570902,1769382676275,-500.0,0.00016986,2]
[403570903,1769382676284,-500.0,0.00016986,2]
[403570904,1769382676294,-500.0,0.00016986,2]
[403570905,1769382676303,-500.0,0.00016986,2]
[403570906,1769382676313,-500.0,0.00016986,2]
[403570907,1769382676323,-500.0,0.00016986,2]
[403570908,1769382676332,-500.0,0.00016986,2]
[403570909,1769382676342,-500.0,0.00016986,2]
[403570910,1769382676351,-500.0,0.00016986,2]
[403570911,1769382676361,-500.0,0.00016986,2]
[403570912,1769382676374,-169.10239345,0.00016986,2]
[403570913,1769382676389,-200.36879683,0.00016986,2]
[403570914,1769382676401,-500.0,0.00016986,2]
[403570915,1769382676412,-500.0,0.00016986,2]
[403570916,1769382676422,-278.733147,0.00016986,2]
[403570917,1769382676433,-500.0,0.00016986,2]
[403570918,1769382676443,-500.0,0.00016986,2]
[403570919,1769382676453,-500.0,0.00016986,2]
[403570920,1769382676462,-1064.17,0.00016986,2]
[403570921,1769382676472,-278.733147,0.00016986,2]
[403570922,1769382676481,-500.0,0.00016986,2]
[403570923,1769382676493,-278.733147,0.00016986,2]
[403570924,1769382676503,-500.0,0.00016986,2]
[403570925,1769382676513,-500.0,0.00016986,2]
[403570926,1769382676523,-278.733147,0.00016986,2]
[403570927,1769382676533,-637.19,0.00016986,2]
[403570928,1769382676543,-500.0,0.00016986,2]
[403570929,1769382676553,-500.0,0.00016986,2]
[403570930,1769382676562,-18.30089019,0.00016986,2]
[403570931,1769382676574,-491.53910981,0.00016986,2]
[403570932,1769382676585,-500.0,0.00016986,2]
[403570933,1769382676594,-500.0,0.00016986,2]
[403570934,1769382676604,-500.0,0.00016986,2]
[403570935,1769382676614,-500.0,0.00016986,2]
[403570936,1769382676624,-500.0,0.00016986,2]
[403570937,1769382676634,-500.0,0.00016986,2]
[403570938,1769382676644,-548.13057869,0.00016986,2]
[403570939,1769382676653,-500.0,0.00016986,2]
[403570940,1769382676663,-500.0,0.00016986,2]
[403570941,1769382676672,-500.0,0.00016986,2]
[403570942,1769382676683,-500.0,0.00016986,2]
[403570943,1769382676693,-335.199289,0.00016986,2]
[403570944,1769382676703,-28.82973916,0.00016986,2]
[403570945,1769382676715,-471.17026084,0.00016986,2]
[403570946,1769382676724,-335.199289,0.00016986,2]
[403570947,1769382676733,-500.0,0.00016986,2]
[403570948,1769382676744,-335.199289,0.00016986,2]
[403570949,1769382676753,-500.0,0.00016986,2]
[403570950,1769382676763,-335.199289,0.00016986,2]
[403570951,1769382676773,-481.50895845,0.00016986,2]
[403570952,1769382676785,-18.49104155,0.00016986,2]
[403570953,1769382676794,-251.29926148,0.00016986,2]
[403570954,1769382676814,-248.70073852,0.00016986,2]
[403570955,1769382676824,-500.0,0.00016986,2]
[403570956,1769382676833,-500.0,0.00016986,2]
[403570957,1769382676843,-500.0,0.00016986,2]
[403570958,1769382676852,-602.44,0.00016986,2]
[403570959,1769382676862,-1112.94,0.00016986,2]
[403570960,1769382676871,-500.0,0.00016986,2]
[403570961,1769382676881,-500.0,0.00016986,2]
[403570962,1769382676890,-500.0,0.00016986,2]
[403570963,1769382676901,-500.0,0.00016986,2]
[403570964,1769382676911,-363.89269933,0.00016986,2]
[403570965,1769382676921,-500.0,0.00016986,2]
[403570966,1769382676932,-500.0,0.00016986,2]
[403570967,1769382676943,-500.0,0.00016986,2]
[403570968,1769382676952,-500.0,0.00016986,2]
[403570969,1769382676962,-1690.8,0.00016986,2]
[403570970,1769382676973,-500.0,0.00016986,2]
[403570971,1769382676984,-500.0,0.00016986,2]
[403570972,1769382677249,-500.0,0.00016986,2]
[403570973,1769382677259,-151.0,0.00016986,2]
[403570974,1769382677270,-151.0,0.00016986,2]
[403570975,1769382677281,-500.0,0.00016986,2]
[403570976,1769382677291,-500.0,0.00016986,2]
[403570977,1769382677302,-207.129734,0.00016986,2]
[403570978,1769382677313,-500.0,0.00016986,2]
[403570979,1769382677323,-500.0,0.00016986,2]
[403570980,1769382677332,-500.0,0.00016986,2]
[403570981,1769382677342,-500.0,0.00016986,2]
[403570982,1769382677351,-500.0,0.00016986,2]
[403570983,1769382677362,-500.0,0.00016986,2]
[403570984,1769382677371,-500.0,0.00016986,2]
[403570985,1769382677380,-500.0,0.00016986,2]
[403570986,1769382677390,-500.0,0.00016986,2]
[403570987,1769382677399,-500.0,0.00016986,2]
[403570988,1769382677408,-500.0,0.00016986,2]
[403570989,1769382677417,-151.0,0.00016986,2]
[403570990,1769382677426,-500.0,0.00016986,2]
[403570991,1769382677436,-500.0,0.00016986,2]
[403570992,1769382677445,-500.0,0.00016986,2]
[403570993,1769382677455,-500.0,0.00016986,2]
[403570994,1769382677464,-500.0,0.00016986,2]
[403570995,1769382677474,-151.0,0.00016986,2]
[403570996,1769382677483,-500.0,0.00016986,2]
[403570997,1769382677492,-500.0,0.00016986,2]
[403570998,1769382677502,-242.697492,0.00016986,2]
[403570999,1769382677511,-500.0,0.00016986,2]
[403571000,1769382677520,-500.0,0.00016986,2]
[403571001,1769382677529,-500.0,0.00016986,2]
[403571002,1769382677538,-1847.5,0.00016986,2]
[403571003,1769382677548,-500.0,0.00016986,2]
[403571004,1769382677557,-500.0,0.00016986,2]
[403571005,1769382677566,-500.0,0.00016986,2]
[403571006,1769382677577,-500.0,0.00016986,2]
[403571007,1769382677586,-500.0,0.00016986,2]
[403571008,1769382677596,-205.29857463,0.00016986,2]
[403571009,1769382677606,-500.0,0.00016986,2]
[403571010,1769382677615,-500.0,0.00016986,2]
[403571011,1769382677624,-500.0,0.00016986,2]
[403571012,1769382677634,-500.0,0.00016986,2]
[403571013,1769382677643,-500.0,0.00016986,2]
[403571014,1769382677652,-500.0,0.00016986,2]
[403571015,1769382677662,-500.0,0.00016986,2]
[403571016,1769382677672,-500.0,0.00016986,2]
[403571017,1769382677682,-610.39,0.00016986,2]
[403571018,1769382677691,-500.0,0.00016986,2]
[403571019,1769382677701,-500.0,0.00016986,2]
[403571020,1769382677710,-500.0,0.00016986,2]
[403571021,1769382677720,-500.0,0.00016986,2]
[403571022,1769382677729,-500.0,0.00016986,2]
[403571023,1769382677739,-586.06,0.00016986,2]
[403571024,1769382677750,-500.0,0.00016986,2]
[403571025,1769382677760,-500.0,0.00016986,2]
[403571026,1769382677770,-500.0,0.00016986,2]
[403571027,1769382677780,-500.0,0.00016986,2]
[403571028,1769382677791,-500.0,0.00016986,2]
[403571029,1769382677801,-514.03709463,0.00016986,2]
[403571030,1769382677813,-500.0,0.00016986,2]
[403571031,1769382677824,-500.0,0.00016986,2]
[403571032,1769382677835,-500.0,0.00016986,2]
[403571033,1769382677845,-500.0,0.00016986,2]
[403571034,1769382677854,-571.10024631,0.00016986,2]
[403571035,1769382677863,-500.0,0.00016986,2]
[403571036,1769382677873,-434.26372376,0.00016986,2]
[403571037,1769382677883,-500.0,0.00016986,2]
[403571038,1769382677892,-500.0,0.00016986,2]
[403571039,1769382677901,-500.0,0.00016986,2]
[403571040,1769382677911,-500.0,0.00016986,2]
[403571041,1769382677920,-515.07203938,0.00016986,2]
[403571042,1769382677930,-500.0,0.00016986,2]
[403571043,1769382677941,-500.0,0.00016986,2]
[403571044,1769382677950,-500.0,0.00016986,2]
[403571045,1769382677959,-500.0,0.00016986,2]
[403571046,1769382677968,-500.0,0.00016986,2]
[403571047,1769382677981,-500.0,0.00016986,2]
[403571048,1769382677991,-500.0,0.00016986,2]
[403571049,1769382678000,-500.0,0.00016986,2]
[403571050,1769382678009,-500.0,0.00016986,2]
[403571051,1769382678019,-500.0,0.00016986,2]
[403571052,1769382678028,-500.0,0.00016986,2]
[403571053,1769382678037,-500.0,0.00016986,2]
[403571054,1769382678046,-500.0,0.00016986,2]
[403571055,1769382678056,-500.0,0.00016986,2]
[403571056,1769382678066,-500.0,0.00016986,2]
[403571057,1769382678075,-500.0,0.00016986,2]
[403571058,1769382678083,-1136.22,0.00016986,2]
[403571059,1769382678093,-500.0,0.00016986,2]
[403571060,1769382678102,-500.0,0.00016986,2]
[403571061,1769382678111,-500.0,0.00016986,2]
[403571062,1769382678120,-503.28,0.00016986,2]
[403571063,1769382678129,-500.0,0.00016986,2]
[403571064,1769382678138,-500.0,0.00016986,2]
[403571065,1769382678148,-500.0,0.00016986,2]
[403571066,1769382678157,-500.0,0.00016986,2]
[403571067,1769382678167,-500.0,0.00016986,2]
[403571068,1769382678177,-500.0,0.00016986,2]
[403571069,1769382678187,-500.0,0.00016986,2]
[403571070,1769382678198,-628.3,0.00016986,2]
[403571071,1769382678207,-5406.19,0.00016986,2]
[403571072,1769382678217,-500.0,0.00016986,2]
[403571073,1769382678227,-500.0,0.00016986,2]
[403571074,1769382678236,-500.0,0.00016986,2]
[403571075,1769382678246,-500.0,0.00016986,2]
[403571076,1769382678255,-500.0,0.00016986,2]
[403571077,1769382678265,-500.0,0.00016986,2]
[403571078,1769382678274,-500.0,0.00016986,2]
[403571079,1769382678283,-500.0,0.00016986,2]
[403571080,1769382678293,-500.0,0.00016986,2]
[403571081,1769382678302,-500.0,0.00016986,2]
[403571082,1769382678312,-568.3,0.00016986,2]
[403571083,1769382678323,-500.0,0.00016986,2]
[403571084,1769382678332,-670.19,0.00016986,2]
[403571085,1769382678342,-500.0,0.00016986,2]
[403571086,1769382678351,-500.0,0.00016986,2]
[403571087,1769382678361,-500.0,0.00016986,2]
[403571088,1769382678370,-500.0,0.00016986,2]
[403571089,1769382678379,-1313.37,0.00016986,2]
[403571090,1769382678388,-962.83,0.00016986,2]
[403571091,1769382678398,-1708.71,0.00016986,2]
[403571092,1769382678410,-500.0,0.00016986,2]
[403571093,1769382678419,-363.9,0.00016986,2]
[403571094,1769382678430,-527.36,0.00016986,2]
[403571095,1769382678439,-500.0,0.00016986,2]
[403571096,1769382678451,-500.0,0.00016986,2]
[403571097,1769382678459,-500.0,0.00016986,2]
[403571098,1769382678468,-500.0,0.00016986,2]
[403571099,1769382678477,-500.0,0.00016986,2]
[403571100,1769382678486,-1000.0,0.00016986,2]
[403571101,1769382678497,-639.07263536,0.00016986,2]
[403571102,1769382678507,-500.0,0.00016986,2]
[403571103,1769382678517,-500.0,0.00016986,2]
[403571104,1769382678527,-500.0,0.00016986,2]
[403571105,1769382678539,-610.73,0.00016986,2]
[403571106,1769382678549,-500.0,0.00016986,2]
[403571107,1769382678559,-500.0,0.00016986,2]
[403571108,1769382678568,-500.0,0.00016986,2]
[403571109,1769382678577,-786.13,0.00016986,2]
[403571110,1769382678587,-500.0,0.00016986,2]
[403571111,1769382678596,-500.0,0.00016986,2]
[403571112,1769382678605,-500.0,0.00016986,2]
[403571113,1769382678614,-500.0,0.00016986,2]
[403571114,1769382678624,-500.0,0.00016986,2]
[403571115,1769382678634,-500.0,0.00016986,2]
[403571116,1769382678644,-187.641158,0.00016986,2]
[403571117,1769382678654,-500.0,0.00016986,2]
[403571118,1769382678663,-187.641158,0.00016986,2]
[403571119,1769382678673,-500.0,0.00016986,2]
[403571120,1769382678683,-187.641158,0.00016986,2]
[403571121,1769382678692,-500.0,0.00016986,2]
[403571122,1769382678701,-500.0,0.00016986,2]
[403571123,1769382678711,-500.0,0.00016986,2]
[403571124,1769382678721,-187.641158,0.00016986,2]
[403571125,1769382678730,-500.0,0.00016986,2]
[403571126,1769382678739,-500.0,0.00016986,2]
[403571127,1769382678749,-500.0,0.00016986,2]
[403571128,1769382678758,-500.0,0.00016986,2]
[403571129,1769382678767,-500.0,0.00016986,2]
[403571130,1769382678777,-500.0,0.00016986,2]
[403571131,1769382678786,-500.0,0.00016986,2]
[403571132,1769382678795,-1189.02,0.00016986,2]
[403571133,1769382678804,-500.0,0.00016986,2]
[403571134,1769382678814,-500.0,0.00016986,2]
[403571135,1769382678823,-500.0,0.00016986,2]
[403571136,1769382678832,-838.57,0.00016986,2]
[403571137,1769382678841,-500.0,0.00016986,2]
[403571138,1769382678851,-500.0,0.00016986,2]
[403571139,1769382678860,-500.0,0.00016986,2]
[403571140,1769382678869,-500.0,0.00016986,2]
[403571141,1769382678879,-500.0,0.00016986,2]
[403571142,1769382678889,-500.0,0.00016986,2]
[403571143,1769382678899,-500.0,0.00016986,2]
[403571144,1769382678908,-500.0,0.00016986,2]
[403571145,1769382678917,-500.0,0.00016986,2]
[403571146,1769382678928,-500.0,0.00016986,2]
[403571147,1769382678939,-500.0,0.00016986,2]
[403571148,1769382678950,-500.0,0.00016986,2]
[403571149,1769382678959,-500.0,0.00016986,2]
[403571150,1769382678968,-500.0,0.00016986,2]
[403571151,1769382678981,-500.0,0.00016986,2]
[403571152,1769382678990,-500.0,0.00016986,2]
[403571153,1769382678999,-500.0,0.00016986,2]
[403571154,1769382679008,-500.0,0.00016986,2]
[403571155,1769382679019,-500.0,0.00016986,2]
[403571156,1769382679027,-500.0,0.00016986,2]
[403571157,1769382679037,-500.0,0.00016986,2]
[403571158,1769382679048,-500.0,0.00016986,2]
[403571159,1769382679057,-500.0,0.00016986,2]
[403571160,1769382679066,-500.0,0.00016986,2]
[403571161,1769382679076,-1182.26,0.00016986,2]
[403571162,1769382679086,-500.0,0.00016986,2]
[403571163,1769382679096,-500.0,0.00016986,2]
[403571164,1769382679106,-500.0,0.00016986,2]
[403571165,1769382679115,-500.0,0.00016986,2]
[403571166,1769382679126,-500.0,0.00016986,2]
[403571167,1769382679136,-500.0,0.00016986,2]
[403571168,1769382679147,-2448.7,0.00016986,2]
[403571169,1769382679158,-500.0,0.00016986,2]
[403571170,1769382679167,-500.0,0.00016986,2]
[403571171,1769382679177,-500.0,0.00016986,2]
[403571172,1769382679187,-500.0,0.00016986,2]
[403571173,1769382679200,-500.0,0.00016986,2]
[403571174,1769382679209,-500.0,0.00016986,2]
[403571175,1769382679221,-500.0,0.00016986,2]
[403571176,1769382679231,-500.0,0.00016986,2]
[403571177,1769382679242,-500.0,0.00016986,2]
[403571178,1769382679252,-500.0,0.00016986,2]
[403571179,1769382679263,-500.0,0.00016986,2]
[403571180,1769382679272,-1756.2,0.00016986,2]
[403571181,1769382679281,-243.05222621,0.00016986,2]
[403571182,1769382679291,-500.0,0.00016986,2]
[403571183,1769382679300,-500.0,0.00016986,2]
[403571184,1769382679310,-500.0,0.00016986,2]
[403571185,1769382679319,-500.0,0.00016986,2]
[403571186,1769382679328,-500.0,0.00016986,2]
[403571187,1769382679337,-500.0,0.00016986,2]
[403571188,1769382679346,-500.0,0.00016986,2]
[403571189,1769382679355,-388.6485798,0.00016986,2]
[403571190,1769382679365,-500.0,0.00016986,2]
[403571191,1769382679374,-500.0,0.00016986,2]
[403571192,1769382679383,-500.0,0.00016986,2]
[403571193,1769382679392,-500.0,0.00016986,2]
[403571194,1769382679401,-500.0,0.00016986,2]
[403571195,1769382679411,-500.0,0.00016986,2]
[403571196,1769382679421,-324.82198149,0.00016986,2]
[403571197,1769382679431,-500.0,0.00016986,2]
[403571198,1769382679442,-500.0,0.00016986,2]
[403571199,1769382679451,-500.0,0.00016986,2]
[403571200,1769382679460,-500.0,0.00016986,2]
[403571201,1769382679470,-500.0,0.00016986,2]
[403571202,1769382679479,-500.0,0.00016986,2]
[403571203,1769382679488,-500.0,0.00016986,2]
[403571204,1769382679497,-500.0,0.00016986,2]
[403571205,1769382679506,-500.0,0.00016986,2]
[403571206,1769382679516,-500.0,0.00016986,2]
[403571207,1769382679602,-500.0,0.00016986,2]
[403571208,1769382679612,-500.0,0.00016986,2]
[403571209,1769382679621,-500.0,0.00016986,2]
[403571210,1769382679631,-500.0,0.00016986,2]
[403571211,1769382679640,-500.0,0.00016986,2]
[403571212,1769382679650,-500.0,0.00016986,2]
[403571213,1769382679659,-500.0,0.00016986,2]
[403571214,1769382679668,-500.0,0.00016986,2]
[403571215,1769382679677,-500.0,0.00016986,2]
[403571216,1769382679687,-500.0,0.00016986,2]
[403571217,1769382679696,-500.0,0.00016986,2]
[403571218,1769382679705,-500.0,0.00016986,2]
[403571219,1769382679715,-500.0,0.00016986,2]
[403571220,1769382679724,-500.0,0.00016986,2]
[403571221,1769382679733,-500.0,0.00016986,2]
[403571222,1769382679742,-500.0,0.00016986,2]
[403571223,1769382679751,-500.0,0.00016986,2]
[403571224,1769382679760,-500.0,0.00016986,2]
[403571225,1769382679769,-500.0,0.00016986,2]
[403571226,1769382679778,-500.0,0.00016986,2]
[403571227,1769382679787,-644.25,0.00016986,2]
[403571228,1769382679796,-500.0,0.00016986,2]
[403571229,1769382679806,-403.0,0.00016986,2]
[403571230,1769382679816,-1000.0,0.00016986,2]
[403571231,1769382679826,-107323.3209432,0.00016994,2]
[403571232,1769382679836,-6893.949801,0.00016994,2]
[403571233,1769382679845,-54086.29420947,0.00016994,2]
[403571234,1769382679866,-139541.62507203,0.00016994,2]
[403571235,1769382679875,-42412.8905332,0.00016994,2]
[403571236,1769382679884,-151.0,0.00016994,2]
[403571237,1769382679893,-170358.5729959,0.00016994,2]
[403571238,1769382679902,-2394.9653454,0.00016994,2]
[403571239,1769382679913,-151.0,0.00016994,2]
[403571240,1769382679922,-278.733147,0.00016994,2]
[403571241,1769382679931,-278.733147,0.00016994,2]
[403571242,1769382679940,-278.733147,0.00016994,2]
[403571243,1769382679952,-278.733147,0.00016994,2]
[403571244,1769382679961,-335.199289,0.00016994,2]
[403571245,1769382679970,-335.199289,0.00016994,2]
[403571246,1769382679982,-335.199289,0.00016994,2]
[403571247,1769382679991,-335.199289,0.00016994,2]
[403571248,1769382680000,-151.0,0.00016994,2]
[403571249,1769382680009,-151.0,0.00016994,2]
[403571250,1769382680019,-151.0,0.00016994,2]
[403571251,1769382680028,-151.0,0.00016994,2]
[403571252,1769382680037,-187.641158,0.00016994,2]
[403571253,1769382680047,-187.641158,0.00016994,2]
[403571254,1769382680056,-187.641158,0.00016994,2]
[403571255,1769382680065,-187.641158,0.00016994,2]
[403571256,1769382680075,-200.0,0.00016996,2]
[403571257,1769382680084,-88163.74259837,0.00017,2]
[403571258,1769382680131,-5858.58035425,0.00017,2]
[403571262,1769383749150,-1000.0,0.00013976,2]
[403571263,1769383749171,-9735.29684702,0.0001399,2]
[403571264,1769383749191,-1000.0,0.00014139,2]
[403571265,1769383749211,-1000.0,0.00014164,2]
[403571271,1769383832309,-165.59,0.00015011,2]
[403571272,1769383832318,-166.66,0.00015137,2]
[403571273,1769383832328,-166.66,0.00015456,2]
[403571274,1769383832339,-462.88715654,0.00015755,2]
[403571275,1769383832350,-537.11284346,0.00015755,2]
[403571276,1769383832359,-153.27165054,0.00015757,2]
[403571277,1769383832369,-2601.45599372,0.00015757,2]
[403571278,1769383832379,-166.66,0.00015775,2]
[403571279,1769383832388,-262.3,0.00015814,2]
[403571280,1769383832397,-262.3,0.00015814,2]
[403571281,1769383832407,-262.3,0.00015814,2]
[403571282,1769383832416,-262.3,0.00015814,2]
[403571283,1769383832426,-262.3,0.00015814,2]
[403571284,1769383832435,-1200.0,0.00015823,2]
[403571285,1769383832445,-300.0,0.00015823,2]
[403571286,1769383832455,-3603.27532054,0.00015824,2]
[403571291,1769383833009,-168.84957019,0.00015823,2]
[403571292,1769383833019,-221.52314912,0.00015824,2]
[403571293,1769383833067,-11152.50356385,0.00015824,2]
[403571294,1769383833079,-36916.51062635,0.00015824,2]
[403571295,1769383833090,-18307.6192437,0.00015824,2]
[403571296,1769383833102,-268.97000001,0.00015824,2]
[403571301,1769383838433,-500.0,0.00015823,2]
[403571302,1769383838442,-256.99601783,0.00015823,2]
[403571303,1769383838454,-243.00398217,0.00015823,2]
[403571304,1769383838464,-332.12758156,0.00015823,2]
[403571307,1769383840619,-167.87241844,0.00015823,2]
[403571308,1769383840628,-500.0,0.00015823,2]
[403571309,1769383840637,-46.78588666,0.00015823,2]
[403571310,1769383840848,-224.69774633,0.00015823,2]
[403571311,1769383840858,-8047.72631272,0.00015824,2]
[403571312,1769383840869,-865.095,0.00015824,2]
[403571313,1769383843489,-1054.18328667,0.00015824,2]
[403571314,1769383843501,-388.14500003,0.00015824,2]
[403571315,1769383843514,-288.64879627,0.00015824,2]
[403571316,1769383843525,-900.6611816,0.00015824,2]
[403571317,1769383843537,-479.43468256,0.00015824,2]
[403571318,1769383843751,-330.28996395,0.00015824,2]
[403571319,1769383843762,-684.77400246,0.00015824,2]
[403571320,1769383843779,-5642.70196642,0.00015824,2]
[403571321,1769383843790,-17507.54073792,0.00015824,2]
[403571322,1769383846388,-16214.22461897,0.00015824,2]
[403571324,1769383846408,-6517.05713229,0.00015824,2]
[403571325,1769383846423,-13567.95713481,0.00015824,2]
[403571326,1769383846520,-419.99999999,0.00015824,2]
[403571327,1769383846532,-3909.88738717,0.00015824,2]
[403571328,1769383846548,-4328.4,0.00015824,2]
[403571329,1769383846559,-505.01796416,0.00015824,2]
[403571330,1769383846570,-489.41642455,0.00015824,2]
[403571331,1769383846706,-1292.52388058,0.00015824,2]
[403571344,1769384846100,-422.79830842,0.00011937,2]
[403571345,1769384954065,-1343.82169158,0.00011937,2]
[403571346,1769384954085,-500.0,0.00014384,2]
[403571347,1769384954104,-306.74,0.00014511,2]
[403571352,1769385031692,-200.0,0.00014757,2]
[403571354,1769385031702,-100.0,0.00015014,2]
[403571356,1769385031713,-400.0,0.00015014,2]
[403571358,1769385031722,-200.0,0.00015036,2]
[403571359,1769385031731,-411.19177213,0.00015176,2]
[403571375,1769385032090,-366.13195705,0.00015176,2]
[403571376,1769385032101,-222.67627082,0.00015176,2]
[403571377,1769385032111,-277.32372918,0.00015405,2]
[403571378,1769385032133,-722.67627082,0.00015405,2]
[403571379,1769385032143,-2364.33611751,0.0001562,2]
[403571380,1769385032153,-151.0,0.0001562,2]
[403571381,1769385032162,-177.23835,0.0001562,2]
[403571382,1769385032172,-300.0,0.00015621,2]
[403571383,1769385032181,-1200.0,0.00015621,2]
[403571384,1769385032190,-300.0,0.00015622,2]
[403571385,1769385032199,-300.0,0.00015622,2]
[403571386,1769385032209,-150.0,0.00015622,2]
[403571387,1769385032218,-868.16,0.00015622,2]
[403571388,1769385032227,-194.3905972,0.00015622,2]
[403571389,1769385032237,-5958.43291623,0.00015623,2]
[403571390,1769385032248,-1446.51326682,0.00015623,2]
[403571393,1769385037567,-500.0,0.00015621,2]
[403571394,1769385037576,-270.23008688,0.00015621,2]
[403571395,1769385037585,-223.11143653,0.00015621,2]
[403571396,1769385037732,-276.88856347,0.00015621,2]
[403571397,1769385037742,-500.0,0.00015621,2]
[403571398,1769385037751,-500.0,0.00015621,2]
[403571399,1769385037760,-500.0,0.00015621,2]
[403571400,1769385037769,-500.0,0.00015621,2]
[403571401,1769385037779,-500.0,0.00015621,2]
[403571402,1769385037787,-500.0,0.00015621,2]
[403571403,1769385037796,-500.0,0.00015621,2]
[403571404,1769385037805,-500.0,0.00015621,2]
[403571405,1769385037813,-411.84865596,0.00015621,2]
[403571415,1769385039747,-88.15134404,0.00015621,2]
[403571416,1769385039756,-500.0,0.00015621,2]
[403571417,1769385039766,-500.0,0.00015621,2]
[403571418,1769385039775,-267.22436039,0.00015621,2]
[403571419,1769385039784,-500.0,0.00015621,2]
[403571420,1769385039793,-500.0,0.00015621,2]
[403571421,1769385039802,-500.0,0.00015621,2]
[403571422,1769385039811,-500.0,0.00015621,2]
[403571423,1769385039820,-500.0,0.00015621,2]
[403571424,1769385039829,-500.0,0.00015621,2]
[403571425,1769385039839,-500.0,0.00015621,2]
[403571426,1769385039848,-500.0,0.00015621,2]
[403571427,1769385039857,-500.0,0.00015621,2]
[403571428,1769385039867,-500.0,0.00015621,2]
[403571429,1769385039876,-500.0,0.00015621,2]
[403571430,1769385039885,-500.0,0.00015621,2]
[403571431,1769385039894,-500.0,0.00015621,2]
[403571432,1769385039903,-325.0,0.00015621,2]
[403571433,1769385039912,-992595.05381695,0.00015623,2]
[403571434,1769385039921,-6508.49106297,0.0001572,2]
[403571435,1769385039930,-171.39925443,0.00015725,2]
[403571436,1769385039943,-1000.0,0.00015794,2]
[403571437,1769385039952,-150.0,0.000158,2]
[403571438,1769385039961,-150.54323667,0.0001581,2]
[403571439,1769385039971,-500.0,0.00015819,2]
[403571440,1769385039979,-40670.38302303,0.0001582,2]
[403571441,1769385040146,-398.20153847,0.0001582,2]
[403571442,1769385040155,-1005.79846156,0.0001582,2]
[403571444,1769385040166,-1729.9777014,0.0001582,2]
[403571447,1769385040180,-8683.57965093,0.0001582,2]
[403571449,1769385040192,-8947.21879473,0.0001582,2]
[403571463,1769385040517,-8943.78386462,0.0001582,2]
[403571464,1769385040528,-9077.54866152,0.0001582,2]
[403571465,1769385040538,-8943.84023489,0.0001582,2]
[403571466,1769385040553,-6258.7835539,0.0001582,2]
[403571470,1769385045042,-1163.69555954,0.0001582,2]
[403571471,1769385045271,-1421.62340813,0.0001582,2]
[403571472,1769385045282,-432.21802615,0.0001582,2]